Workbook

Sheet Nordre Landkanal
A1: Vandområde | C1: Nordre Landkanal | BE1: Vandområde | BG1: Damhusåen
A3: Udlednings nr. | C3: UN10 | D3: BC-U47 | E3: UN15 | F3: VA-U23 | G3: ØC-U02 | H3: ØC-U03 | I3: ØC-U06 | J3: ØC-U34 | K3: ØS-U03 | L3: ØS-U12 | BE3: Udlednings nr. | BG3: UD10b | BH3: UD10d | BI3: UD11b | BJ3: UD12 | BK3: UD13 | BL3: UD14 | BM3: UD15 | BN3: UD16 | BO3: UD17 | BP3: UD18 | BQ3: UD19b | BR3: UD20b | BS3: UD21 | BT3: UD21b | BU3: UD24 | BV3: Sum
A4: Adresse | C4: Digevejs-grøften | D4: Ørestads Boulevard | E4: Slusevej | F4: Ørestads Boulevard2 | G4: Kay Fiskers Vej | H4: CMC-vej | I4: Kay Fiskers Vej3 | J4: Ørestads Boulevard4 | K4: Hannemanns Allé | L4: Hannemanns Allé5 | M4: SUM | BE4: Adresse | BG4: Nødoverløb Damhusåens renseanlæg | BH4: Hovedoverløb Damhus-ledning | BI4: Åhaven | BJ4: Sønderkær | BK4: Vigerslev Allé | BL4: Gårdstedet | BM4: Heldbovej | BN4: Lykkebovej | BO4: Landlystvej | BP4: Skyttegårdsvej | BQ4: Sandhusvej | BR4: Hvidovre station | BS4: Vigerslev-parken N for Dæmningen | BT4: Nødoverløb ved Torpedo-bygværket | BU4: Roskildevej | BV4: -
A5: Kloakeringstype | B5: Status | C5: Fælles | D5: Separat | E5: Separat | F5: Separat | G5: Separat | H5: Separat | I5: Separat | J5: Separat | K5: Separat | L5: Separat | M5: - | BE5: Kloakeringstype | BF5: Status | BG5: Fælles | BH5: Fælles | BI5: Fælles | BJ5: Fælles | BK5: Fælles | BL5: Fælles | BM5: Fælles | BN5: Fælles | BO5: Fælles | BP5: Fælles | BQ5: Fælles | BR5: Fælles | BS5: Fælles | BT5: Fælles | BU5: Fælles | BV5: -
B6: Plan | C6: Fælles | D6: Separat | E6: Separat | F6: Separat | G6: Separat | H6: Separat | I6: Separat | J6: Separat | K6: Separat | L6: Separat | M6: - | BF6: Plan | BG6: Fælles | BH6: Fælles | BI6: Fælles | BJ6: Fælles | BK6: Fælles | BL6: Fælles | BM6: Fælles | BN6: Fælles | BO6: Fælles | BP6: Fælles | BQ6: Fælles | BR6: Fælles | BS6: Fælles | BT6: Fælles | BU6: Fælles | BV6: -
B7: Strategi | C7: Fælles | D7: Separat | E7: Separat | F7: Separat | G7: Separat | H7: Separat | I7: Separat | J7: Separat | K7: Separat | L7: Separat | M7: - | BF7: Strategi | BG7: Fælles | BH7: Fælles | BI7: Fælles | BJ7: Fælles | BK7: Fælles | BL7: Fælles | BM7: Fælles | BN7: Fælles | BO7: Fælles | BP7: Fælles | BQ7: Fælles | BR7: Fælles | BS7: Fælles | BT7: Fælles | BU7: Fælles | BV7: -
A8: Reduceret areal ha | B8: Status | C8: 119.75616 | D8: 0.2 | E8: 0.5 | F8: 2 | G8: 0.602 | H8: 2.1 | I8: 0.74 | J8: 1.2 | K8: 1 | L8: 4.4 | M8: =SUM(Tabel17[[#This Row],[Digevejs-grøften]:[Hannemanns Allé5]]) -> 132.49816 | BE8: Reduceret areal ha | BF8: Status | BG8: 62.09627 | BH8: 0 | BI8: 4.926299 | BJ8: 13.292068 | BK8: 9.063189 | BL8: 1.454076 | BM8: 1.523395 | BN8: 3.503314 | BO8: 1.93898 | BP8: 4.850912 | BQ8: 2.3 | BR8: 1.07056 | BS8: 284.5 | BT8: 0 | BU8: 0 | BV8: =SUM(BG8:BU8) -> 390.519063
B9: Plan | C9: 119.75616 | D9: 0.2 | E9: 0.5 | F9: 2 | G9: 0.602 | H9: 2.1 | I9: 0.74 | J9: 1.2 | K9: 1 | L9: 4.4 | M9: =SUM(Tabel17[[#This Row],[Digevejs-grøften]:[Hannemanns Allé5]]) -> 132.49816 | BF9: Plan | BG9: 62.09627 | BH9: 0 | BI9: 4.926299 | BJ9: 13.292068 | BK9: 9.063189 | BL9: 1.454076 | BM9: 1.523395 | BN9: 3.503314 | BO9: 1.93898 | BP9: 4.850912 | BQ9: 2.3 | BR9: 1.07056 | BS9: 284.5 | BT9: 0 | BU9: 0 | BV9: 390.519063
B10: Strategi | C10: 119.75616 | D10: 0.2 | E10: 0.5 | F10: 2 | G10: 0.602 | H10: 2.1 | I10: 0.74 | J10: 1.2 | K10: 1 | L10: 4.4 | M10: =SUM(Tabel17[[#This Row],[Digevejs-grøften]:[Hannemanns Allé5]]) -> 132.49816 | BF10: Strategi | BG10: 62.09627 | BH10: 0 | BI10: 4.926299 | BJ10: 13.292068 | BK10: 9.063189 | BL10: 1.454076 | BM10: 1.523395 | BN10: 3.503314 | BO10: 1.93898 | BP10: 4.850912 | BQ10: 2.3 | BR10: 1.07056 | BS10: 284.5 | BT10: 0 | BU10: 0 | BV10: 390.519063
A11: Maks udledning l/s | B11: Status | C11: 6000 | D11: 40 | E11: 81 | F11: 220 | G11: 114 | H11: 100 | I11: 140 | J11: 185 | K11: 162 | L11: 185 | M11: =SUM(Tabel17[[#This Row],[Digevejs-grøften]:[Hannemanns Allé5]]) -> 7227 | BE11: Maks udledning l/s | BF11: Status | BG11: 5000 | BH11: 5000 | BI11: 700 | BJ11: 3000 | BK11: 1200 | BL11: 500 | BM11: 100 | BN11: 300 | BO11: 300 | BP11: 500 | BQ11: 500 | BR11: 200 | BS11: 1500 | BT11: 0 | BU11: 1000 | BV11: 19800
B12: Plan | C12: 6000 | D12: 40 | E12: 81 | F12: 220 | G12: 114 | H12: 100 | I12: 140 | J12: 185 | K12: 162 | L12: 185 | M12: =SUM(Tabel17[[#This Row],[Digevejs-grøften]:[Hannemanns Allé5]]) -> 7227 | BF12: Plan | BG12: 5000 | BH12: 5000 | BI12: 700 | BJ12: 3000 | BK12: 1200 | BL12: 500 | BM12: 100 | BN12: 300 | BO12: 300 | BP12: 500 | BQ12: 500 | BR12: 200 | BS12: 1500 | BT12: 0 | BU12: 1000 | BV12: 19800
B13: Strategi | C13: 6000 | D13: 40 | E13: 81 | F13: 220 | G13: 114 | H13: 100 | I13: 140 | J13: 185 | K13: 162 | L13: 185 | M13: =SUM(Tabel17[[#This Row],[Digevejs-grøften]:[Hannemanns Allé5]]) -> 7227 | BF13: Strategi | BG13: 5000 | BH13: 5000 | BI13: 700 | BJ13: 3000 | BK13: 1200 | BL13: 500 | BM13: 100 | BN13: 300 | BO13: 300 | BP13: 500 | BQ13: 500 | BR13: 200 | BS13: 1500 | BT13: 0 | BU13: 1000 | BV13: 19800
A14: Overløbshyppighed antal/år | B14: Status | C14: 1 | D14: 0 | F14: 55 | H14: 0 | J14: 0 | M14: =SUM(Tabel17[[#This Row],[Digevejs-grøften]:[Hannemanns Allé5]]) -> 56 | BE14: Overløbshyppighed antal/år | BF14: Status | BG14: 2 | BH14: 1 | BI14: 0.5 | BJ14: 0.1 | BK14: 0.1 | BL14: 0.1 | BM14: 0.1 | BN14: 0.1 | BO14: 0.25 | BP14: 0.3 | BQ14: 0.1 | BR14: 0.1 | BS14: 0.2 | BT14: 0 | BU14: 13 | BV14: -
B15: Plan | C15: 1 | D15: 0 | E15: 0 | F15: 55 | G15: 0 | H15: 0 | I15: 0 | J15: 0 | K15: 0 | L15: 0 | M15: =SUM(Tabel17[[#This Row],[Digevejs-grøften]:[Hannemanns Allé5]]) -> 56 | BF15: Plan | BG15: 2 | BH15: 1 | BI15: 0.5 | BJ15: 0.1 | BK15: 0.1 | BL15: 0.1 | BM15: 0.1 | BN15: 0.1 | BO15: 0.25 | BP15: 0.3 | BQ15: 0.1 | BR15: 0.1 | BS15: 0.2 | BT15: 0 | BU15: 13 | BV15: -
B16: Strategi | C16: 0.1 | F16: 55 | M16: =SUM(Tabel17[[#This Row],[Digevejs-grøften]:[Hannemanns Allé5]]) -> 55.1 | BF16: Strategi | BG16: 1 | BH16: 0.1 | BI16: 0.05 | BJ16: 0.01 | BK16: 0.01 | BL16: 0.01 | BM16: 0.01 | BN16: 0.01 | BO16: 0.025 | BP16: 0.03 | BQ16: 0.01 | BR16: 0.01 | BS16: 0.02 | BT16: 0 | BU16: 10 | BV16: -
A17: Vand m3/år | B17: Status | C17: 4820 | D17: 692.2077922 | E17: 1771.164021 | F17: 7084.656085 | G17: 2132.481481 | H17: 7268.181818 | I17: 2621.322751 | J17: 4153.246753 | K17: 3542.328042 | L17: 15586.24339 | M17: =SUM(Tabel17[[#This Row],[Digevejs-grøften]:[Hannemanns Allé5]]) -> 49671.83213 | BE17: Vand m3/år | BF17: Status | BG17: 3408 | BH17: 15000 | BI17: 500 | BJ17: 1000 | BK17: 100 | BL17: 100 | BM17: 100 | BN17: 100 | BO17: 500 | BP17: 100 | BQ17: 100 | BR17: 100 | BS17: 500 | BT17: 0 | BU17: 8734 | BV17: =SUM(BG17:BU17) -> 30342
B18: Plan | C18: 4820 | D18: 692.2077922 | E18: 1771.164021 | F18: 7084.656085 | G18: 2132.481481 | H18: 7268.181818 | I18: 2621.322751 | J18: 4153.246753 | K18: 3542.328042 | L18: 15586.24339 | M18: =SUM(Tabel17[[#This Row],[Digevejs-grøften]:[Hannemanns Allé5]]) -> 49671.83213 | BF18: Plan | BG18: 3408 | BH18: 15000 | BI18: 500 | BJ18: 1000 | BK18: 100 | BL18: 100 | BM18: 100 | BN18: 100 | BO18: 500 | BP18: 100 | BQ18: 100 | BR18: 100 | BS18: 500 | BT18: 0 | BU18: 8734 | BV18: 30342
B19: Strategi | C19: 482 | D19: 726.8181818 | E19: 1859.722222 | F19: 7438.888889 | G19: 2239.105556 | H19: 7631.590909 | I19: 2752.388889 | J19: 4360.909091 | K19: 3719.444444 | L19: 16365.55556 | M19: =SUM(Tabel17[[#This Row],[Digevejs-grøften]:[Hannemanns Allé5]]) -> 47576.42374 | BF19: Strategi | BG19: 1704 | BH19: 1500 | BI19: 50 | BJ19: 100 | BK19: 10 | BL19: 10 | BM19: 10 | BN19: 10 | BO19: 50 | BP19: 10 | BQ19: 10 | BR19: 10 | BS19: 50 | BT19: 0 | BU19: 780 | BV19: 4304
A20: COD kg/år | B20: Status | C20: 241 | D20: 110.7532468 | E20: 283.3862434 | F20: 1133.544974 | G20: 341.197037 | H20: 1162.909091 | I20: 419.4116402 | J20: 664.5194805 | K20: 566.7724868 | L20: 2493.798942 | M20: =SUM(Tabel17[[#This Row],[Digevejs-grøften]:[Hannemanns Allé5]]) -> 7417.293141 | BE20: COD kg/år | BF20: Status | BG20: 170 | BH20: 750 | BI20: 25 | BJ20: 50 | BK20: 5 | BL20: 5 | BM20: 5 | BN20: 5 | BO20: 25 | BP20: 5 | BQ20: 5 | BR20: 5 | BS20: 25 | BT20: 0 | BU20: 437 | BV20: 1517
B21: Plan | C21: 241 | D21: 110.7532468 | E21: 283.3862434 | F21: 1133.544974 | G21: 341.197037 | H21: 1162.909091 | I21: 419.4116402 | J21: 664.5194805 | K21: 566.7724868 | L21: 2493.798942 | M21: =SUM(Tabel17[[#This Row],[Digevejs-grøften]:[Hannemanns Allé5]]) -> 7417.293141 | BF21: Plan | BG21: 170 | BH21: 750 | BI21: 25 | BJ21: 50 | BK21: 5 | BL21: 5 | BM21: 5 | BN21: 5 | BO21: 25 | BP21: 5 | BQ21: 5 | BR21: 5 | BS21: 25 | BT21: 0 | BU21: 437 | BV21: 1517
B22: Strategi | C22: 24.1 | D22: 116.2909091 | E22: 297.5555556 | F22: 1190.222222 | G22: 358.2568889 | H22: 1221.054545 | I22: 440.3822222 | J22: 697.7454545 | K22: 595.1111111 | L22: 2618.488889 | M22: =SUM(Tabel17[[#This Row],[Digevejs-grøften]:[Hannemanns Allé5]]) -> 7559.207798 | BF22: Strategi | BG22: 85 | BH22: 75 | BI22: 2 | BJ22: 5.9 | BK22: 0.5 | BL22: 0.5 | BM22: 0.5 | BN22: 0.5 | BO22: 2.5 | BP22: 0.5 | BQ22: 0.5 | BR22: 0.5 | BS22: 2.5 | BT22: 0 | BU22: 39 | BV22: 215.4
A23: Total N kg/år | B23: Status | C23: 9.64 | D23: 6.922077922 | E23: 17.71164021 | F23: 70.84656085 | G23: 21.32481481 | H23: 72.68181818 | I23: 26.21322751 | J23: 41.53246753 | K23: 35.42328042 | L23: 155.8624339 | M23: =SUM(Tabel17[[#This Row],[Digevejs-grøften]:[Hannemanns Allé5]]) -> 458.1583213 | BE23: Total N kg/år | BF23: Status | BG23: 6.8 | BH23: 30 | BI23: 1 | BJ23: 2 | BK23: 0.2 | BL23: 0.2 | BM23: 0.2 | BN23: 0.2 | BO23: 1 | BP23: 0.2 | BQ23: 0.2 | BR23: 0.2 | BS23: 1 | BT23: 0 | BU23: 17.5 | BV23: 60.7
B24: Plan | C24: 9.64 | D24: 6.922077922 | E24: 17.71164021 | F24: 70.84656085 | G24: 21.32481481 | H24: 72.68181818 | I24: 26.21322751 | J24: 41.53246753 | K24: 35.42328042 | L24: 155.8624339 | M24: =SUM(Tabel17[[#This Row],[Digevejs-grøften]:[Hannemanns Allé5]]) -> 458.1583213 | BF24: Plan | BG24: 6.8 | BH24: 30 | BI24: 1 | BJ24: 2 | BK24: 0.2 | BL24: 0.2 | BM24: 0.2 | BN24: 0.2 | BO24: 1 | BP24: 0.2 | BQ24: 0.2 | BR24: 0.2 | BS24: 1 | BT24: 0 | BU24: 17.5 | BV24: 60.7
B25: Strategi | C25: 0.964 | D25: 7.268181818 | E25: 18.59722222 | F25: 74.38888889 | G25: 22.39105556 | H25: 76.31590909 | I25: 27.52388889 | J25: 43.60909091 | K25: 37.19444444 | L25: 163.6555556 | M25: =SUM(Tabel17[[#This Row],[Digevejs-grøften]:[Hannemanns Allé5]]) -> 471.9082374 | BF25: Strategi | BG25: 3.4 | BH25: 3 | BI25: 0.08 | BJ25: 0.2 | BK25: 0.02 | BL25: 0.02 | BM25: 0.02 | BN25: 0.02 | BO25: 0.1 | BP25: 0.02 | BQ25: 0.02 | BR25: 0.02 | BS25: 0.1 | BT25: 0 | BU25: 1.6 | BV25: 8.62
A26: Total P kg/år | B26: Status | C26: 2.41 | D26: 1.730519481 | E26: 4.427910053 | F26: 17.71164021 | G26: 5.331203704 | H26: 18.17045455 | I26: 6.553306878 | J26: 10.38311688 | K26: 8.855820106 | L26: 38.96560847 | M26: =SUM(Tabel17[[#This Row],[Digevejs-grøften]:[Hannemanns Allé5]]) -> 114.5395803 | BE26: Total P kg/år | BF26: Status | BG26: 1.7 | BH26: 7.5 | BI26: 0.25 | BJ26: 0.5 | BK26: 0.05 | BL26: 0.05 | BM26: 0.05 | BN26: 0.05 | BO26: 0.25 | BP26: 0.05 | BQ26: 0.05 | BR26: 0.05 | BS26: 0.25 | BT26: 0 | BU26: 4.4 | BV26: 15.2
B27: Plan | C27: 2.41 | D27: 1.730519481 | E27: 4.427910053 | F27: 17.71164021 | G27: 5.331203704 | H27: 18.17045455 | I27: 6.553306878 | J27: 10.38311688 | K27: 8.855820106 | L27: 38.96560847 | M27: =SUM(Tabel17[[#This Row],[Digevejs-grøften]:[Hannemanns Allé5]]) -> 114.5395803 | BF27: Plan | BG27: 1.7 | BH27: 7.5 | BI27: 0.25 | BJ27: 0.5 | BK27: 0.05 | BL27: 0.05 | BM27: 0.05 | BN27: 0.05 | BO27: 0.25 | BP27: 0.05 | BQ27: 0.05 | BR27: 0.05 | BS27: 0.25 | BT27: 0 | BU27: 4.4 | BV27: 15.2
B28: Strategi | C28: 0.241 | D28: 1.817045455 | E28: 4.649305556 | F28: 18.59722222 | G28: 5.597763889 | H28: 19.07897727 | I28: 6.880972222 | J28: 10.90227273 | K28: 9.298611111 | L28: 40.91388889 | M28: =SUM(Tabel17[[#This Row],[Digevejs-grøften]:[Hannemanns Allé5]]) -> 117.9770593 | BF28: Strategi | BG28: 0.8 | BH28: 0.75 | BI28: 0.02 | BJ28: 0.06 | BK28: 0.005 | BL28: 0.005 | BM28: 0.005 | BN28: 0.005 | BO28: 0.025 | BP28: 0.005 | BQ28: 0.005 | BR28: 0.005 | BS28: 0.025 | BT28: 0 | BU28: 0.4 | BV28: =SUM(BG28:BU28) -> 2.115
